bitfinex/quotes_BTCUSD_20250601
["timestamp","ask_amount","ask_price","bid_price","bid_amount"]
[1748788214699,0.00130069,104700.0,104690.0,1.99409242]
[1748788215120,0.00130069,104700.0,104690.0,1.99409231]
[1748788215518,0.00130069,104700.0,104690.0,1.69193207]
[1748788215747,0.00130069,104700.0,104690.0,1.99357207]
[1748788216599,0.00130069,104700.0,104690.0,1.9869251]
[1748788216773,0.00130069,104700.0,104690.0,1.9935718]
[1748788217197,0.00130069,104700.0,104690.0,1.99357201]
[1748788217810,0.00130069,104700.0,104690.0,1.15949944]
[1748788218081,0.03950314,104700.0,104690.0,1.99333118]
[1748788218306,0.03950314,104700.0,104690.0,1.6852851]
[1748788218533,0.03950314,104700.0,104690.0,1.59341175]
[1748788218534,0.02995223,104700.0,104690.0,1.59341175]
[1748788218735,0.00130069,104700.0,104690.0,1.59341175]
[1748788218855,0.00130069,104700.0,104690.0,2.03112432]
[1748788220064,0.00130069,104700.0,104690.0,2.03112241]
[1748788220285,0.00130069,104700.0,104690.0,1.59340997]
[1748788220908,0.00130069,104700.0,104690.0,1.5867651]
[1748788221088,0.00130069,104700.0,104690.0,1.59341001]
[1748788221291,0.00130069,104700.0,104690.0,1.61270207]
[1748788222074,0.00130069,104700.0,104690.0,1.61270204]
[1748788222451,0.00130069,104700.0,104690.0,2.01270204]
[1748788222647,0.00130069,104700.0,104690.0,1.60985716]
[1748788222889,0.00130069,104700.0,104690.0,2.01270194]
[1748788223470,0.00130069,104700.0,104690.0,2.01270231]
[1748788223680,0.00130069,104700.0,104690.0,2.00605716]
[1748788223887,0.00130069,104700.0,104690.0,2.01270256]
[1748788224113,0.00130069,104700.0,104690.0,2.00605716]
[1748788224315,0.00130069,104700.0,104690.0,2.01270268]
[1748788225473,0.00130069,104700.0,104690.0,2.00605716]
[1748788225573,0.00130069,104700.0,104690.0,2.0127035]
[1748788226475,0.00130069,104700.0,104690.0,2.00605716]
[1748788226699,0.00130069,104700.0,104690.0,2.0127044]
[1748788227539,0.01085114,104700.0,104690.0,1.59721234]
[1748788227750,0.01085105,104700.0,104690.0,1.59721234]
[1748788227956,0.00130069,104700.0,104690.0,1.99377234]
[1748788228382,0.00130069,104700.0,104690.0,1.59377234]
[1748788228588,0.00130069,104700.0,104690.0,1.5871251]
[1748788228795,0.00130069,104700.0,104690.0,1.59377483]
[1748788229410,0.00130069,104700.0,104690.0,1.59377634]
[1748788229611,0.00130069,104700.0,104690.0,1.59377637]
[1748788229814,0.00130069,104700.0,104690.0,1.5871251]
[1748788230259,0.00130069,104700.0,104690.0,1.59377635]
[1748788231098,0.00130069,104700.0,104690.0,1.5871251]
[1748788231306,0.00130069,104700.0,104690.0,1.59377776]
[1748788232385,0.00130069,104700.0,104690.0,1.59377773]
[1748788232805,0.00130069,104700.0,104690.0,1.59377913]
[1748788234323,0.00130069,104700.0,104690.0,1.59378015]
[1748788234750,0.00130069,104700.0,104690.0,1.59378034]
[1748788234978,0.00130069,104700.0,104690.0,1.5937804]
[1748788235204,0.00130069,104700.0,104690.0,1.5871251]
[1748788235451,0.00130069,104700.0,104690.0,0.14850973]
[1748788235452,0.2114242,104700.0,104690.0,0.14850973]
[1748788235665,0.2114242,104700.0,104690.0,0.35385543]
[1748788235879,0.2114242,104700.0,104690.0,0.791648]
[1748788235880,0.2433242,104700.0,104690.0,0.791648]
[1748788236087,0.2114242,104700.0,104690.0,1.00179642]
[1748788236505,0.2114242,104700.0,104690.0,1.00179556]
[1748788236742,0.2114242,104700.0,104690.0,1.00179555]
[1748788237124,0.2114242,104700.0,104690.0,0.27235471]
[1748788237345,0.20187356,104700.0,104690.0,0.80108352]
[1748788237750,0.23347356,104700.0,104690.0,0.80108352]
[1748788237911,0.23347356,104700.0,104690.0,0.8010821]
[1748788238329,0.23347356,104700.0,104690.0,0.99212231]
[1748788238532,0.23347356,104700.0,104690.0,0.99212101]
[1748788238734,0.23347356,104700.0,104690.0,0.05265622]
[1748788238958,0.22392265,104700.0,104690.0,0.05265622]
[1748788239166,0.22392265,104700.0,104690.0,0.05265806]
[1748788239420,0.22392265,104700.0,104690.0,0.046]
[1748788239545,0.22392265,104700.0,104690.0,0.0526582]
[1748788239955,0.23734873,104700.0,104690.0,0.0526582]
[1748788240870,0.23734873,104700.0,104690.0,0.05265406]
[1748788241442,0.23734873,104700.0,104690.0,0.046]
[1748788241909,0.34774388,104700.0,104690.0,0.046]
[1748788242730,0.34774388,104700.0,104690.0,0.043]
[1748788243152,0.34774388,104700.0,104690.0,0.04]
[1748788243363,0.34774388,104700.0,104690.0,0.041]
[1748788245076,0.34774388,104700.0,104690.0,0.042]
[1748788246474,0.3343178,104700.0,104690.0,0.042]
[1748788246685,0.34722961,104700.0,104690.0,0.042]
[1748788252355,0.43974083,104700.0,104690.0,0.042]
[1748788252781,0.36603612,104700.0,104690.0,0.042]
[1748788253051,0.35312431,104700.0,104690.0,0.042]
[1748788254197,0.3629998,104700.0,104690.0,0.041]
[1748788254620,0.3629998,104700.0,104690.0,0.04]
[1748788257737,0.7029998,104700.0,104690.0,0.04]
[1748788258149,0.8078419,104700.0,104690.0,0.04]
[1748788259204,5.8578419,104700.0,104690.0,0.04]
[1748788262981,6.1592019,104700.0,104690.0,0.04]
[1748788264055,6.1622019,104700.0,104690.0,0.04]
[1748788264277,6.1622019,104700.0,104690.0,0.02746884]
[1748788264278,6.2221619,104700.0,104690.0,0.02746884]
[1748788264491,6.2121619,104700.0,104690.0,0.02746884]
[1748788264707,6.4661619,104700.0,104690.0,0.02746884]
[1748788265109,5.83589609,104700.0,104690.0,0.02746884]
[1748788265342,6.22985609,104700.0,104690.0,0.02746884]
[1748788265818,6.24285609,104700.0,104690.0,0.02846884]
[1748788267031,6.25685609,104700.0,104690.0,0.02946884]
[1748788267287,6.34936731,104700.0,104690.0,0.02946884]
[1748788268323,6.33936731,104700.0,104690.0,0.02946884]
[1748788268953,6.34940731,104700.0,104690.0,0.02946884]
[1748788269155,6.25685609,104700.0,104690.0,0.02946884]
[1748788269375,5.89485609,104700.0,104690.0,0.02946884]
[1748788269579,6.19681609,104700.0,104690.0,0.02946884]
[1748788270200,6.25681609,104700.0,104690.0,0.02946884]
[1748788270405,6.29932731,104700.0,104690.0,0.02946884]
[1748788270578,6.34932731,104700.0,104690.0,0.02946884]
[1748788270815,6.29932731,104700.0,104690.0,0.02946884]
[1748788271477,5.90240731,104700.0,104690.0,0.02946884]
[1748788271693,5.99740731,104700.0,104690.0,0.02946884]
[1748788271902,5.79989609,104700.0,104690.0,0.02946884]
[1748788272111,6.19693609,104700.0,104690.0,0.02946884]
[1748788272339,6.16293624,104700.0,104690.0,0.02946884]
[1748788272547,6.17747709,104700.0,104690.0,0.02946884]
[1748788272752,6.30178831,104700.0,104690.0,0.02946884]
[1748788273145,6.20927709,104700.0,104690.0,0.02946884]
[1748788274216,6.17747709,104700.0,104690.0,0.02946884]
[1748788274645,6.20927709,104700.0,104690.0,0.02946884]
[1748788275340,6.17747709,104700.0,104690.0,0.02946884]
[1748788277603,6.16346384,104700.0,104690.0,0.02946884]
[1748788278550,6.29837506,104700.0,104690.0,0.02946884]
[1748788279947,6.20586384,104700.0,104690.0,0.02946884]
[1748788281311,6.19586384,104700.0,104690.0,0.02946884]
[1748788281524,6.16346384,104700.0,104690.0,0.02946884]
[1748788281711,5.86146384,104700.0,104690.0,0.02946884]
[1748788281943,6.16286384,104700.0,104690.0,0.04546884]
[1748788282134,5.76646384,104700.0,104690.0,0.06166884]
[1748788282389,6.16282384,104700.0,104690.0,0.06166884]
[1748788283420,6.25533506,104700.0,104690.0,0.06166884]
[1748788284060,6.16282384,104700.0,104690.0,0.06166884]
[1748788284261,6.16182384,104700.0,104690.0,0.06166884]
[1748788287915,0.81046384,104700.0,104690.0,0.06166884]
[1748788298529,0.3133447,104700.0,104690.0,0.06166884]
[1748788298776,0.2174904,104700.0,104690.0,0.06166884]
[1748788299040,0.2174904,104700.0,104690.0,0.06832717]
[1748788299229,0.22704131,104700.0,104690.0,0.70952536]
[1748788299436,0.20086031,104700.0,104690.0,0.514591]
[1748788299644,0.18786031,104700.0,104690.0,0.513591]
[1748788299842,0.18786031,104700.0,104690.0,0.50403899]
[1748788300061,0.1783094,104700.0,104690.0,0.50403479]
[1748788300981,0.1783094,104700.0,104690.0,0.50403222]
[1748788301483,0.1813094,104700.0,104690.0,0.50403222]
[1748788301731,0.1813094,104700.0,104690.0,0.49738141]
[1748788301937,0.1783094,104700.0,104690.0,0.50402939]
[1748788302380,0.1783094,104700.0,104690.0,0.50693342]
[1748788302613,0.1783094,104700.0,104690.0,0.51358184]
[1748788302731,0.1783094,104700.0,104690.0,0.50402964]
[1748788303171,0.1783094,104700.0,104690.0,0.50432964]
[1748788303575,0.01910136,104700.0,104690.0,0.72402269]
[1748788303781,0.21058968,104710.0,104700.0,0.23157287]
[1748788303991,0.01003458,104710.0,104700.0,1.00462395]
[1748788304244,0.02913367,104710.0,104700.0,1.10047604]
[1748788304475,0.03868367,104710.0,104700.0,1.10047464]
[1748788304658,0.22013803,104710.0,104700.0,0.43353684]
[1748788304858,0.20103867,104710.0,104700.0,0.03764254]
[1748788305228,0.20103867,104710.0,104700.0,0.3332]
[1748788305431,0.20103867,104710.0,104700.0,0.031]
[1748788306012,0.20203867,104710.0,104700.0,0.031]
[1748788307320,0.31243382,104710.0,104700.0,0.031]
[1748788313773,0.20203867,104710.0,104700.0,0.46871257]
[1748788314286,0.20203867,104710.0,104700.0,0.67883653]
[1748788314518,0.20203867,104710.0,104700.0,0.68838735]
[1748788314519,0.02058468,104710.0,104700.0,0.68838735]
[1748788314766,0.23068867,104710.0,104700.0,0.68838735]
[1748788314975,0.22113894,104710.0,104700.0,0.70457977]
[1748788315155,0.22113894,104710.0,104700.0,0.7045795]
[1748788315370,0.21158894,104710.0,104700.0,0.7045795]
[1748788315572,0.20203885,104710.0,104700.0,0.68547795]
[1748788316826,0.03013431,104710.0,104700.0,0.80043354]
[1748788317025,0.2402383,104710.0,104700.0,0.36272116]
[1748788317226,0.23068867,104710.0,104700.0,0.80043373]
[1748788317441,0.23068867,104710.0,104700.0,0.8004336]
[1748788318065,0.23068867,104710.0,104700.0,0.80043324]
[1748788318473,0.02058413,104710.0,104700.0,0.90494369]
[1748788318678,0.03013404,104710.0,104700.0,0.90494369]
[1748788319226,0.03968404,104710.0,104700.0,0.90494383]
[1748788319440,0.03968404,104710.0,104700.0,0.89539338]
[1748788319441,0.23068776,104710.0,104700.0,0.89539338]
[1748788319585,0.03968404,104710.0,104700.0,0.90494383]
[1748788319972,0.03013404,104710.0,104700.0,1.24494325]
[1748788320171,0.02058413,104710.0,104700.0,1.24494325]
[1748788320621,0.02058413,104710.0,104700.0,1.23830265]
[1748788320822,0.03013376,104710.0,104700.0,1.23830265]
[1748788321030,0.03013376,104710.0,104700.0,0.80059008]
[1748788321225,0.03013376,104710.0,104700.0,1.23830265]
[1748788321757,0.03968376,104710.0,104700.0,1.23830265]
[1748788321970,0.03968376,104710.0,104700.0,1.24494348]
[1748788322196,0.03968367,104710.0,104700.0,1.23830265]
[1748788322399,0.03013376,104710.0,104700.0,1.23830265]
[1748788322601,0.03013376,104710.0,104700.0,1.24494366]
[1748788322709,0.03968376,104710.0,104700.0,0.80723125]
[1748788322939,0.03968376,104710.0,104700.0,1.24494522]
[1748788323166,0.03968376,104710.0,104700.0,1.23830265]
[1748788323374,0.03968376,104710.0,104700.0,0.81207983]
[1748788323583,0.03013376,104710.0,104700.0,1.24979152]
[1748788323791,0.23068812,104710.0,104700.0,1.11573449]
[1748788324003,0.23068812,104710.0,104700.0,1.43659791]
[1748788324247,0.23068812,104710.0,104700.0,1.43950508]
[1748788324468,0.22113858,104710.0,104700.0,1.42995444]
[1748788324680,0.22113858,104710.0,104700.0,1.43659772]
[1748788325086,0.22113858,104710.0,104700.0,1.44130118]
[1748788325349,0.22113858,104710.0,104700.0,0.99403797]
[1748788325554,0.22113858,104710.0,104700.0,1.42510726]
[1748788325783,0.22113858,104710.0,104700.0,1.43175018]
[1748788325964,0.22113858,104710.0,104700.0,1.43175235]
[1748788326381,0.22113858,104710.0,104700.0,1.44130299]
[1748788326614,0.22113858,104710.0,104700.0,1.12044133]
[1748788326792,0.22113858,104710.0,104700.0,1.43640415]
[1748788327065,0.20203885,104710.0,104700.0,0.0424968]
[1748788327286,0.20203885,104710.0,104700.0,0.04250053]
[1748788327502,0.20203885,104710.0,104700.0,0.34406053]
[1748788327917,0.20203885,104710.0,104700.0,0.04250053]
[1748788328130,0.20203885,104710.0,104700.0,0.03765409]
[1748788328348,0.20203885,104710.0,104700.0,0.03765393]
[1748788328550,0.20203885,104710.0,104700.0,0.03765392]
[1748788329402,0.20203885,104710.0,104700.0,0.031]
[1748788329618,0.20203885,104710.0,104700.0,0.03765592]
[1748788329829,0.20203885,104710.0,104700.0,0.03765628]
[1748788330034,0.20203885,104710.0,104700.0,0.031]
[1748788331135,0.20203885,104710.0,104700.0,0.03765658]
[1748788331374,0.20203885,104710.0,104700.0,0.031]
[1748788332462,0.01103486,104710.0,104700.0,0.68838699]
[1748788332679,0.23068848,104710.0,104700.0,0.67883644]
[1748788332889,0.23068848,104710.0,104700.0,0.68549295]
[1748788333132,0.22113885,104710.0,104700.0,0.67883644]
[1748788333565,0.21158894,104710.0,104700.0,0.66928562]
[1748788333756,0.21158894,104710.0,104700.0,0.67883662]
[1748788333971,0.21158894,104710.0,104700.0,0.69504419]
[1748788334174,0.01103449,104710.0,104700.0,0.70748871]
[1748788334405,0.03013403,104710.0,104700.0,0.70748871]
[1748788334611,0.00148495,104710.0,104700.0,0.71414482]
[1748788334832,0.02058385,104710.0,104700.0,0.80999815]
[1748788335033,0.02058385,104710.0,104700.0,0.80334301]
[1748788335379,0.03013348,104710.0,104700.0,0.80334301]
[1748788335770,0.03968321,104710.0,104700.0,0.80334301]
[1748788335978,0.02058376,104710.0,104700.0,0.80334301]
[1748788336181,0.03013339,104710.0,104700.0,0.80334301]
[1748788336387,0.0301333,104710.0,104700.0,0.80334301]
[1748788336635,0.0301333,104710.0,104700.0,0.80999791]
[1748788336850,0.00148495,104710.0,104700.0,0.80334301]
[1748788337291,0.0110344,104710.0,104700.0,0.80334301]
[1748788337646,0.0110344,104710.0,104700.0,0.80999786]
[1748788337823,0.0110344,104710.0,104700.0,0.80334301]
[1748788338023,0.0110344,104710.0,104700.0,0.80999808]
[1748788338541,0.0110344,104710.0,104700.0,0.80999822]
[1748788338729,0.0110344,104710.0,104700.0,0.89826301]
[1748788339492,0.02058394,104710.0,104700.0,0.46720579]
[1748788339701,0.02058394,104710.0,104700.0,0.90491836]
[1748788339905,0.02058394,104710.0,104700.0,0.90491859]
[1748788340086,0.02058394,104710.0,104700.0,0.90691859]
[1748788340492,0.03013367,104710.0,104700.0,0.90691859]
[1748788340947,0.02913367,104710.0,104700.0,0.90691859]
[1748788341154,0.02913367,104710.0,104700.0,0.90791871]
[1748788341597,0.03868367,104710.0,104700.0,0.90126301]
[1748788341799,0.02913367,104710.0,104700.0,0.90791921]
[1748788342411,0.01958394,104710.0,104700.0,0.90791921]
[1748788342925,0.02913367,104710.0,104700.0,0.90791921]
[1748788343159,0.02913367,104710.0,104700.0,0.90126301]
[1748788343367,0.02913367,104710.0,104700.0,0.91278093]
[1748788343760,0.02913367,104710.0,104700.0,0.91278092]
[1748788344374,0.03868358,104710.0,104700.0,0.91278092]
[1748788344579,0.02913367,104710.0,104700.0,0.91278092]
[1748788344810,0.03868358,104710.0,104700.0,0.91278092]
[1748788345012,0.02913367,104710.0,104700.0,0.91278092]
[1748788345215,0.02913367,104710.0,104700.0,0.91278266]
[1748788345413,0.03868358,104710.0,104700.0,0.90612383]
[1748788345618,0.02913367,104710.0,104700.0,0.90612383]
[1748788345852,0.03868358,104710.0,104700.0,0.91278275]
[1748788346270,0.02913367,104710.0,104700.0,0.91278275]
[1748788346494,0.00048495,104710.0,104700.0,0.91278285]
[1748788346698,0.00048495,104710.0,104700.0,0.91278286]
[1748788346699,0.01003449,104710.0,104700.0,0.91278286]
[1748788347124,0.01003449,104710.0,104700.0,0.90612383]
[1748788347307,0.01003449,104710.0,104700.0,0.91278286]
[1748788347660,0.01958412,104710.0,104700.0,0.91278303]
[1748788348261,0.02913385,104710.0,104700.0,0.91278294]
[1748788348475,0.02913385,104710.0,104700.0,0.91278283]
[1748788348880,0.02913385,104710.0,104700.0,0.91278306]
[1748788349078,0.03868376,104710.0,104700.0,0.90612383]
[1748788349282,0.02913385,104710.0,104700.0,0.91278307]
[1748788349920,0.03868376,104710.0,104700.0,0.90612383]
[1748788350277,0.03868376,104710.0,104700.0,0.91278248]
[1748788350486,0.02913385,104710.0,104700.0,0.91278248]
[1748788350702,0.02913385,104710.0,104700.0,0.91278265]
[1748788351677,0.03868385,104710.0,104700.0,0.91278265]
[1748788351867,0.03868376,104710.0,104700.0,0.91278265]
[1748788352277,0.04823376,104710.0,104700.0,0.47507008]
[1748788352677,0.03868376,104710.0,104700.0,0.91278282]
[1748788353047,0.03868385,104710.0,104700.0,0.28429595]
[1748788353287,0.03868385,104710.0,104700.0,1.02308852]
[1748788353497,0.01958412,104710.0,104700.0,1.0230887]
[1748788353704,0.01958431,104710.0,104700.0,1.11228383]
[1748788353882,0.01958422,104710.0,104700.0,1.11894279]
[1748788354119,0.00048495,104710.0,104700.0,1.11894222]
[1748788354347,0.0100344,104710.0,104700.0,1.11894181]
[1748788354593,0.01958403,104710.0,104700.0,1.11894179]
[1748788354811,0.01958403,104710.0,104700.0,1.11894148]
[1748788355023,0.01958403,104710.0,104700.0,1.11894145]
[1748788355440,0.02913376,104710.0,104700.0,1.11894145]
[1748788355628,0.01958403,104710.0,104700.0,1.11894145]
[1748788355999,0.01958394,104710.0,104700.0,1.11894145]
[1748788356225,0.01958394,104710.0,104700.0,1.11893947]
[1748788356391,0.00048495,104710.0,104700.0,1.5499964]
[1748788356601,0.00048495,104710.0,104700.0,1.89665044]
[1748788356802,0.00048495,104710.0,104700.0,1.89664958]
[1748788357191,0.00048495,104710.0,104700.0,2.29664958]
[1748788357830,0.00048495,104710.0,104700.0,2.29178952]
[1748788358232,0.00048495,104710.0,104700.0,2.28513558]
[1748788359147,0.00048495,104710.0,104700.0,2.29179129]
[1748788359354,0.00048495,104710.0,104700.0,1.55299872]
[1748788359562,0.01958413,104710.0,104700.0,1.39690497]
[1748788359768,0.03868404,104710.0,104700.0,1.45372104]
[1748788360158,0.03868404,104710.0,104700.0,1.44706301]
[1748788360367,0.03868404,104710.0,104700.0,1.14634301]
[1748788360767,0.03868404,104710.0,104700.0,1.54868091]
[1748788361192,0.0100344,104710.0,104700.0,1.98639348]
[1748788361602,0.00048495,104710.0,104700.0,1.98639318]
[1748788361804,0.00048495,104710.0,104700.0,1.97973558]
[1748788362013,0.00048495,104710.0,104700.0,1.98639288]
[1748788362246,0.00048495,104710.0,104700.0,1.9863928]
[1748788362651,0.00048495,104710.0,104700.0,1.97973558]
[1748788362912,0.00048495,104710.0,104700.0,1.98639196]
[1748788363139,0.00048495,104710.0,104700.0,2.38639196]
[1748788363367,0.00048495,104710.0,104700.0,2.37973558]
[1748788363516,0.00048495,104710.0,104700.0,2.38639138]
[1748788364118,0.00048495,104710.0,104700.0,2.38639065]
[1748788364333,0.02864616,104720.0,104710.0,0.59145317]
[1748788364499,0.02873878,104720.0,104710.0,1.13167499]
[1748788365792,0.02973878,104720.0,104710.0,1.13167499]
[1748788366011,0.02973878,104720.0,104710.0,1.1316784]
[1748788366201,0.02973878,104720.0,104710.0,1.13167938]
[1748788366440,0.02018988,104720.0,104710.0,1.13167938]
[1748788366641,0.02973878,104720.0,104710.0,1.13167938]
[1748788366788,0.02973878,104720.0,104710.0,1.12502004]
[1748788367001,0.02018988,104720.0,104710.0,1.13167854]
[1748788367372,0.02973869,104720.0,104710.0,1.13167854]
[1748788367567,0.02973869,104720.0,104710.0,1.13167791]
[1748788367767,0.02018988,104720.0,104710.0,1.12502004]
[1748788367971,0.01064116,104720.0,104710.0,1.13167791]
[1748788368256,0.00109262,104720.0,104710.0,1.12502004]
[1748788368466,0.01064116,104720.0,104710.0,1.13167792]
[1748788368667,0.01064116,104720.0,104710.0,1.12502004]
[1748788368876,0.01064116,104720.0,104710.0,1.13167739]
[1748788369089,0.01064116,104720.0,104710.0,1.12502004]
[1748788369090,9.262e-05,104720.0,104710.0,1.12502004]
[1748788369526,9.262e-05,104720.0,104710.0,1.12602004]
[1748788369737,9.262e-05,104720.0,104710.0,1.13267738]
[1748788369948,9.262e-05,104720.0,104710.0,1.13267679]
[1748788370156,9.262e-05,104720.0,104710.0,0.69696422]
[1748788370371,9.262e-05,104720.0,104710.0,1.13467674]
[1748788370573,0.00964116,104720.0,104710.0,1.13467674]
[1748788371206,0.00964116,104720.0,104710.0,0.69696417]
[1748788371423,0.01918979,104720.0,104710.0,1.1346766]
[1748788371639,0.00964116,104720.0,104710.0,1.1346766]
[1748788372311,0.01918988,104720.0,104710.0,1.1346766]
[1748788372523,0.01918988,104720.0,104710.0,1.12802004]
[1748788372743,0.00964116,104720.0,104710.0,1.12802004]
[1748788372956,0.00964116,104720.0,104710.0,1.13467757]
[1748788373162,0.00964116,104720.0,104710.0,1.1346776]
[1748788374221,0.00964116,104720.0,104710.0,1.13467971]
[1748788374423,0.01918988,104720.0,104710.0,1.13467971]
[1748788374633,0.02873869,104720.0,104710.0,1.43575971]
[1748788374845,0.03828778,104720.0,104710.0,1.13467952]
[1748788375055,0.04783696,104720.0,104710.0,1.43575975]
[1748788375210,0.04783696,104720.0,104710.0,1.43575978]
[1748788375422,0.03828778,104720.0,104710.0,1.43575978]
[1748788375608,0.03828778,104720.0,104710.0,1.43567978]
[1748788376097,0.02873869,104720.0,104710.0,1.43567978]
[1748788376304,0.03828769,104720.0,104710.0,1.43567978]
[1748788376706,0.04783678,104720.0,104710.0,1.43567978]
[1748788377003,0.04783678,104720.0,104710.0,1.13467978]
[1748788377208,0.21017637,104720.0,104710.0,0.34965974]
[1748788377478,0.21017637,104720.0,104710.0,0.85141364]
[1748788377663,0.21017637,104720.0,104710.0,0.86096364]
[1748788378045,0.21017637,104720.0,104710.0,1.30822603]
[1748788378248,0.21972564,104720.0,104710.0,1.33337742]
[1748788378425,0.21972564,104720.0,104710.0,1.34987733]
[1748788379236,0.21972564,104720.0,104710.0,1.35474178]
[1748788379832,0.21972564,104720.0,104710.0,1.354742]
[1748788380466,0.01919052,104720.0,104710.0,1.36429183]
[1748788380660,0.0287397,104720.0,104710.0,1.36429171]
[1748788381235,0.03828897,104720.0,104710.0,1.36429157]
[1748788381670,0.03828897,104720.0,104710.0,1.36429175]
[1748788381893,0.03828897,104720.0,104710.0,1.36429183]
[1748788382112,0.03828897,104720.0,104710.0,1.35762944]
[1748788382356,0.03828897,104720.0,104710.0,1.3642925]
[1748788382639,0.01919052,104720.0,104710.0,1.3642925]
[1748788382875,0.02873897,104720.0,104710.0,1.3642925]
[1748788383300,0.03828806,104720.0,104710.0,1.3642925]
[1748788383704,0.03828806,104720.0,104710.0,1.36429527]
[1748788383929,0.02873897,104720.0,104710.0,1.36429527]
[1748788384376,0.03828806,104720.0,104710.0,1.36429527]
[1748788384590,0.03828806,104720.0,104710.0,1.36429834]
[1748788384814,0.03828806,104720.0,104710.0,1.36429907]
[1748788385041,0.01918997,104720.0,104710.0,1.36429907]
[1748788385311,0.03828806,104720.0,104710.0,1.36429926]
[1748788385511,0.01918997,104720.0,104710.0,1.36430033]
[1748788385715,9.262e-05,104720.0,104710.0,1.45529074]
[1748788385987,9.262e-05,104720.0,104710.0,1.45529075]
[1748788386436,9.262e-05,104720.0,104710.0,1.45529055]
[1748788387497,9.262e-05,104720.0,104710.0,1.45529125]
[1748788387706,9.262e-05,104720.0,104710.0,1.45529124]
[1748788389156,9.262e-05,104720.0,104710.0,1.44861986]
[1748788389410,9.262e-05,104720.0,104710.0,1.01090729]
[1748788389411,0.01918997,104720.0,104710.0,1.01090729]
[1748788389616,0.02873906,104720.0,104710.0,1.54905134]
[1748788389819,0.03828824,104720.0,104710.0,1.54237986]
[1748788390022,0.22927372,104720.0,104710.0,1.53950231]
[1748788390227,0.21972564,104720.0,104710.0,0.34967203]
[1748788390453,0.21017655,104720.0,104710.0,0.84115616]
[1748788390655,0.21017655,104720.0,104710.0,1.30751855]
[1748788390984,0.01919107,104720.0,104710.0,1.30751962]
[1748788391338,0.01919107,104720.0,104710.0,1.35851879]
[1748788391339,0.0191907,104720.0,104710.0,1.35851879]
[1748788391560,0.0191907,104720.0,104710.0,1.35184528]
[1748788391763,0.0191907,104720.0,104710.0,1.35851866]
[1748788391965,0.21972545,104720.0,104710.0,1.34229574]
[1748788393218,0.21972545,104720.0,104710.0,1.34285574]
[1748788393634,0.21972545,104720.0,104710.0,1.34952945]
[1748788393882,0.21972545,104720.0,104710.0,1.29181638]
[1748788394368,0.21972545,104720.0,104710.0,1.30136611]
[1748788395125,0.21017655,104720.0,104710.0,1.29181656]
[1748788395345,0.21017655,104720.0,104710.0,1.31091647]
[1748788395562,0.21017655,104720.0,104710.0,1.32046629]
[1748788395950,0.21017655,104720.0,104710.0,1.31759008]
[1748788396149,0.21017655,104720.0,104710.0,1.31091647]
[1748788396356,0.21017655,104720.0,104710.0,1.31758997]
[1748788396557,0.21017655,104720.0,104710.0,1.31091647]
[1748788396819,0.21017655,104720.0,104710.0,1.3271392]
[1748788396989,0.21017655,104720.0,104710.0,1.29518965]
[1748788397183,0.21017655,104720.0,104710.0,1.30473983]
[1748788397358,0.21017655,104720.0,104710.0,1.32383947]
[1748788397766,0.21017655,104720.0,104710.0,1.3305126]
[1748788398390,0.21017655,104720.0,104710.0,1.36601161]
[1748788398391,0.0191907,104720.0,104710.0,1.36601161]
[1748788398632,0.02873997,104720.0,104710.0,1.35933864]
[1748788398830,0.02873997,104720.0,104710.0,1.3660116]
[1748788399263,0.21972545,104720.0,104710.0,1.34691243]
[1748788399865,0.21972545,104720.0,104710.0,1.34691166]
[1748788400069,0.00964152,104720.0,104710.0,1.34023947]
[1748788400267,0.03828842,104720.0,104710.0,1.35646107]
[1748788400537,0.01919015,104720.0,104710.0,1.35646107]
[1748788400744,9.262e-05,104720.0,104710.0,1.34978901]
[1748788400945,9.262e-05,104720.0,104710.0,1.4523138]
[1748788401500,0.00964107,104720.0,104710.0,1.45231343]
[1748788401696,9.262e-05,104720.0,104710.0,1.45231343]
[1748788402501,9.262e-05,104720.0,104710.0,1.44564331]
[1748788402502,0.00964107,104720.0,104710.0,1.44564331]
[1748788402709,0.00964107,104720.0,104710.0,1.45231311]
[1748788403098,0.00964107,104720.0,104710.0,1.45231302]
[1748788403786,0.0191897,104720.0,104710.0,1.45231302]
[1748788404314,0.00964107,104720.0,104710.0,1.45231293]
[1748788404514,0.00964107,104720.0,104710.0,1.45231303]
[1748788404751,0.00964107,104720.0,104710.0,1.45231304]
[1748788404954,0.02873842,104720.0,104710.0,1.45231304]
[1748788405111,0.03828751,104720.0,104710.0,1.45231303]
[1748788405273,0.04783641,104720.0,104710.0,1.45231294]
[1748788405479,0.22927408,104720.0,104710.0,1.0897411]
[1748788405755,0.02873942,104720.0,104710.0,1.35617864]
[1748788406348,0.02873942,104720.0,104710.0,1.34662922]
[1748788406349,0.0382886,104720.0,104710.0,1.34662922]
[1748788406547,0.22927408,104720.0,104710.0,1.34662922]
[1748788406781,0.23882335,104720.0,104710.0,1.34662922]
[1748788406982,0.23882335,104720.0,104710.0,1.3466296]
[1748788407923,0.23882335,104720.0,104710.0,1.34662986]
[1748788408528,0.23882335,104720.0,104710.0,1.3466299]
[1748788408747,0.23882335,104720.0,104710.0,1.33995937]
[1748788408954,0.23882335,104720.0,104710.0,1.34662996]
[1748788409272,0.0382886,104720.0,104710.0,1.34662996]
[1748788409482,0.0382886,104720.0,104710.0,1.3561795]
[1748788410234,0.0382886,104720.0,104710.0,1.35617982]
[1748788410683,0.0382886,104720.0,104710.0,1.35617972]
[1748788410981,0.23882335,104720.0,104710.0,1.34663018]
[1748788411319,0.23882335,104720.0,104710.0,1.3466303]
[1748788411522,0.23882335,104720.0,104710.0,1.4409503]
[1748788411706,0.23882335,104720.0,104710.0,1.43427937]
[1748788411919,0.01918988,104720.0,104710.0,1.45049984]
[1748788412125,0.01918988,104720.0,104710.0,1.45049986]
[1748788412326,0.00964125,104720.0,104710.0,1.54635415]
[1748788412989,0.00964125,104720.0,104710.0,1.5463526]
[1748788413315,0.0191897,104720.0,104710.0,1.54635263]
[1748788413643,0.01918961,104720.0,104710.0,1.54635254]
[1748788413840,0.02873833,104720.0,104710.0,1.53968321]
[1748788414038,0.02873833,104720.0,104710.0,1.54635254]
[1748788414250,0.02873833,104720.0,104710.0,1.54635253]
[1748788414453,0.01918961,104720.0,104710.0,1.55302185]
[1748788414649,0.02873833,104720.0,104710.0,1.55302194]
[1748788414849,0.02873824,104720.0,104710.0,1.15798198]
[1748788415095,0.02873824,104720.0,104710.0,1.55246198]
[1748788415401,0.02873824,104720.0,104710.0,1.55246191]
[1748788416003,0.03828696,104720.0,104710.0,1.55246063]
[1748788416573,0.03828696,104720.0,104710.0,1.55238063]
[1748788416781,0.04783641,104720.0,104710.0,1.11466812]
[1748788417017,0.04783687,104720.0,104710.0,1.55238069]
[1748788417237,0.21017619,104720.0,104710.0,0.89657771]
[1748788417425,0.21017619,104720.0,104710.0,0.66313142]
[1748788417626,0.21017619,104720.0,104710.0,0.65646268]
[1748788417861,0.21017619,104720.0,104710.0,1.10084437]
[1748788418067,0.21017619,104720.0,104710.0,1.11039426]
[1748788418235,0.21017619,104720.0,104710.0,1.12559426]
[1748788419033,0.21017619,104720.0,104710.0,1.05117793]